[Event "Early-Titled-Tuesday-Blitz-April-23-2024"]
[Site "Chess.com"]
[Date "2024.04.23"]
[Round "1"]
[White "A4RookA3"]
[Black "Kildepiotr"]
[Result "0-1"]
[WhiteElo "2383"]
[BlackElo "2699"]
[TimeControl "180+1"]
[EndTime "8:06:25 PDT"]
[Termination "Kildepiotr won by resignation"]

1. d4 {[%clk 0:02:57.2]} 1... c5 {[%clk 0:02:59.3]} 2. d5 {[%clk 0:02:56.5]}
2... e5 {[%clk 0:02:59.6]} 3. Nc3 {[%clk 0:02:57.3]} 3... d6 {[%clk 0:03:00]} 4.
e4 {[%clk 0:02:57]} 4... Be7 {[%clk 0:03:00.6]} 5. Nf3 {[%clk 0:02:53.1]} 5...
a6 {[%clk 0:02:59.8]} 6. a4 {[%clk 0:02:52.3]} 6... Bg4 {[%clk 0:03:00.4]} 7.
Be2 {[%clk 0:02:48.8]} 7... Bxf3 {[%clk 0:03:00.5]} 8. Bxf3 {[%clk 0:02:49.7]}
8... Bg5 {[%clk 0:03:00.8]} 9. Bxg5 {[%clk 0:02:43.7]} 9... Qxg5 {[%clk
0:03:01.7]} 10. h4 {[%clk 0:02:42.2]} 10... Qd8 {[%clk 0:03:00.9]} 11. g3 {[%clk
0:02:36.4]} 11... Nd7 {[%clk 0:02:57.4]} 12. Qd2 {[%clk 0:02:34.6]} 12... Ne7
{[%clk 0:02:56.8]} 13. O-O {[%clk 0:02:33.6]} 13... O-O {[%clk 0:02:56.5]} 14.
Bg4 {[%clk 0:02:29.4]} 14... h6 {[%clk 0:02:55.5]} 15. f4 {[%clk 0:02:28.2]}
15... exf4 {[%clk 0:02:53.8]} 16. gxf4 {[%clk 0:02:29.1]} 16... f5 {[%clk
0:02:53.6]} 17. Bh3 {[%clk 0:02:23.3]} 17... Qe8 {[%clk 0:02:49.9]} 18. e5
{[%clk 0:02:18]} 18... dxe5 {[%clk 0:02:45.6]} 19. fxe5 {[%clk 0:02:10.8]} 19...
Nxe5 {[%clk 0:02:42.4]} 20. d6 {[%clk 0:02:10.9]} 20... N7c6 {[%clk 0:02:40.1]}
21. Qd5+ {[%clk 0:02:05.5]} 21... Kh8 {[%clk 0:02:37.5]} 22. Qxc5 {[%clk
0:01:56.4]} 22... Qh5 {[%clk 0:02:29.9]} 23. Qf2 {[%clk 0:01:46.6]} 23... Rf6
{[%clk 0:02:20.4]} 24. Kh1 {[%clk 0:01:41.7]} 24... Rxd6 {[%clk 0:02:13]} 25.
Qxf5 {[%clk 0:01:40.2]} 25... Qxh4 {[%clk 0:02:09.1]} 26. Rf4 {[%clk 0:01:38.1]}
26... Qe7 {[%clk 0:02:02.3]} 27. Re1 {[%clk 0:01:37.8]} 27... Rf6 {[%clk
0:02:00.9]} 28. Qe4 {[%clk 0:01:36.1]} 28... Rxf4 {[%clk 0:01:59.6]} 29. Qxf4
{[%clk 0:01:37]} 29... Rf8 {[%clk 0:01:59.6]} 30. Qg3 {[%clk 0:01:31.1]} 30...
Qc5 {[%clk 0:01:06.6]} 31. Qe3 {[%clk 0:01:23.2]} 31... Qxe3 {[%clk 0:01:05.4]}
32. Rxe3 {[%clk 0:01:21.9]} 32... Nc4 {[%clk 0:01:05.8]} 33. Re1 {[%clk
0:01:15.6]} 33... Nxb2 {[%clk 0:00:55.1]} 34. Rb1 {[%clk 0:01:14.8]} 34... Rf3
{[%clk 0:00:55.2]} 35. Bc8 {[%clk 0:01:05]} 35... Rxc3 {[%clk 0:00:54.4]} 36.
Rxb2 {[%clk 0:01:04.7]} 36... Na5 {[%clk 0:00:44]} 37. Bxb7 {[%clk 0:01:03.3]}
37... Nxb7 {[%clk 0:00:43.9]} 38. Rxb7 {[%clk 0:01:04.2]} 38... Rxc2 {[%clk
0:00:44.3]} 39. Rb6 {[%clk 0:01:04.2]} 39... a5 {[%clk 0:00:41.9]} 40. Rb5
{[%clk 0:01:04.1]} 40... Ra2 {[%clk 0:00:42]} 41. Rxa5 {[%clk 0:01:04.1]} 41...
Kh7 {[%clk 0:00:41.9]} 42. Ra6 {[%clk 0:01:04]} 42... h5 {[%clk 0:00:40.1]} 43.
a5 {[%clk 0:01:03.4]} 43... h4 {[%clk 0:00:40.1]} 44. Kg1 {[%clk 0:01:00.3]}
44... g5 {[%clk 0:00:39.7]} 45. Kh1 {[%clk 0:00:55.2]} 45... g4 {[%clk
0:00:38.3]} 46. Rd6 {[%clk 0:00:55.3]} 46... Rxa5 {[%clk 0:00:36.8]} 47. Rd4
{[%clk 0:00:55.3]} 47... Rg5 {[%clk 0:00:36.8]} 0-1

[Event "Early-Titled-Tuesday-Blitz-April-23-2024"]
[Site "Chess.com"]
[Date "2024.04.23"]
[Round "1"]
[White "giovannibrandao7"]
[Black "Hsper248"]
[Result "0-1"]
[WhiteElo "2304"]
[BlackElo "2631"]
[TimeControl "180+1"]
[EndTime "8:06:25 PDT"]
[Termination "Hsper248 won by resignation"]

1. e4 {[%clk 0:03:00.1]} 1... c5 {[%clk 0:02:58.1]} 2. Nf3 {[%clk 0:02:59.8]}
2... Nc6 {[%clk 0:02:58.6]} 3. Bb5 {[%clk 0:03:00.2]} 3... e6 {[%clk 0:02:58.2]}
4. O-O {[%clk 0:03:00.4]} 4... Nge7 {[%clk 0:02:58]} 5. Re1 {[%clk 0:02:59.5]}
5... a6 {[%clk 0:02:54.9]} 6. Bxc6 {[%clk 0:02:59.2]} 6... Nxc6 {[%clk
0:02:54.3]} 7. c3 {[%clk 0:02:59.8]} 7... Be7 {[%clk 0:02:48]} 8. d4 {[%clk
0:02:59.8]} 8... cxd4 {[%clk 0:02:47.7]} 9. cxd4 {[%clk 0:03:00.7]} 9... d5
{[%clk 0:02:47.7]} 10. exd5 {[%clk 0:03:00.8]} 10... exd5 {[%clk 0:02:47.2]} 11.
Nc3 {[%clk 0:03:01.5]} 11... O-O {[%clk 0:02:47.2]} 12. Bf4 {[%clk 0:03:01.4]}
12... Bg4 {[%clk 0:02:45.7]} 13. h3 {[%clk 0:02:56.3]} 13... Bxf3 {[%clk
0:02:45.7]} 14. Qxf3 {[%clk 0:02:56.3]} 14... Nxd4 {[%clk 0:02:46.3]} 15. Qxd5
{[%clk 0:02:55.4]} 15... Nc2 {[%clk 0:02:45.5]} 16. Qxd8 {[%clk 0:02:40.2]}
16... Rfxd8 {[%clk 0:02:07]} 17. Rxe7 {[%clk 0:02:36.3]} 17... Nxa1 {[%clk
0:02:06.5]} 18. Rxb7 {[%clk 0:02:29.1]} 18... Nc2 {[%clk 0:02:05.7]} 19. Na4
{[%clk 0:02:10.2]} 19... Nd4 {[%clk 0:01:58.1]} 20. Bc7 {[%clk 0:02:10.2]} 20...
Re8 {[%clk 0:01:41.5]} 21. Nb6 {[%clk 0:02:06.9]} 21... Re1+ {[%clk 0:01:41.8]}
22. Kh2 {[%clk 0:02:06.3]} 22... Rae8 {[%clk 0:01:42.1]} 23. Nc4 {[%clk
0:01:53.5]} 23... h5 {[%clk 0:01:29.1]} 24. Bb6 {[%clk 0:01:53.2]} 24... Nf5
{[%clk 0:01:23.5]} 25. Ra7 {[%clk 0:01:43.4]} 25... h4 {[%clk 0:01:19.1]} 26.
Rxa6 {[%clk 0:01:38.6]} 26... Rf1 {[%clk 0:01:09.3]} 27. Ne3 {[%clk 0:01:29.7]}
27... Rxf2 {[%clk 0:01:07.5]} 28. Nxf5 {[%clk 0:01:17.8]} 28... Rxf5 {[%clk
0:01:08.4]} 29. Ra4 {[%clk 0:01:01.6]} 29... g5 {[%clk 0:00:54.1]} 30. Rc4
{[%clk 0:00:46]} 30... f6 {[%clk 0:00:52.2]} 31. a4 {[%clk 0:00:43.6]} 31... Re1
{[%clk 0:00:50.6]} 32. g3 {[%clk 0:00:24.3]} 32... Re2+ {[%clk 0:00:48.3]} 33.
Kg1 {[%clk 0:00:24.8]} 33... hxg3 {[%clk 0:00:47]} 34. a5 {[%clk 0:00:21.2]}
34... g2 {[%clk 0:00:39.9]} 0-1

[Event "Early-Titled-Tuesday-Blitz-April-23-2024"]
[Site "Chess.com"]
[Date "2024.04.23"]
[Round "1"]
[White "ChristianArca"]
[Black "dealshark"]
[Result "1-0"]
[WhiteElo "2643"]
[BlackElo "2325"]
[TimeControl "180+1"]
[EndTime "8:06:28 PDT"]
[Termination "ChristianArca won by checkmate"]

1. d4 {[%clk 0:02:59.2]} 1... Nf6 {[%clk 0:02:59.9]} 2. c4 {[%clk 0:02:58.7]}
2... e6 {[%clk 0:03:00.2]} 3. Nc3 {[%clk 0:02:58.7]} 3... Bb4 {[%clk 0:03:00.2]}
4. Qc2 {[%clk 0:02:57.6]} 4... O-O {[%clk 0:02:59.5]} 5. Bd2 {[%clk 0:02:50.7]}
5... c5 {[%clk 0:02:58.5]} 6. dxc5 {[%clk 0:02:47.3]} 6... Bxc5 {[%clk
0:02:56.4]} 7. Nf3 {[%clk 0:02:44.5]} 7... Nc6 {[%clk 0:02:52.4]} 8. a3 {[%clk
0:02:44.2]} 8... d5 {[%clk 0:02:49.4]} 9. b4 {[%clk 0:02:39.9]} 9... Be7 {[%clk
0:02:45.6]} 10. e3 {[%clk 0:02:38.6]} 10... b6 {[%clk 0:02:25.3]} 11. Bd3 {[%clk
0:02:36.7]} 11... dxc4 {[%clk 0:02:24.2]} 12. Bxc4 {[%clk 0:02:36.2]} 12... Bb7
{[%clk 0:02:24.4]} 13. O-O {[%clk 0:02:36.7]} 13... Qc7 {[%clk 0:02:22.9]} 14.
Qb3 {[%clk 0:02:33.6]} 14... Rfd8 {[%clk 0:02:20.1]} 15. Rac1 {[%clk 0:02:33.8]}
15... Qd7 {[%clk 0:02:11.9]} 16. Rfd1 {[%clk 0:02:32.7]} 16... Qe8 {[%clk
0:02:11.9]} 17. Nb5 {[%clk 0:02:30.6]} 17... Rac8 {[%clk 0:02:09.1]} 18. Bc3
{[%clk 0:02:30.1]} 18... Ne4 {[%clk 0:02:03]} 19. Ba1 {[%clk 0:02:28.6]} 19...
a6 {[%clk 0:02:00.7]} 20. Nbd4 {[%clk 0:02:28.1]} 20... Bf6 {[%clk 0:01:48.2]}
21. Nxc6 {[%clk 0:02:22.2]} 21... Bxc6 {[%clk 0:01:46.3]} 22. Bxf6 {[%clk
0:02:18.6]} 22... Nxf6 {[%clk 0:01:45.7]} 23. Rxd8 {[%clk 0:02:15.4]} 23... Rxd8
{[%clk 0:01:30.9]} 24. Bxa6 {[%clk 0:02:14.1]} 24... Ba4 {[%clk 0:01:04.5]} 25.
Qb2 {[%clk 0:01:58.2]} 25... h6 {[%clk 0:01:00]} 26. h3 {[%clk 0:01:57.7]} 26...
Qe7 {[%clk 0:00:56.3]} 27. Ne5 {[%clk 0:01:55.4]} 27... Rd5 {[%clk 0:00:50.5]}
28. Bd3 {[%clk 0:01:45.8]} 28... Qd6 {[%clk 0:00:47]} 29. Rc8+ {[%clk
0:01:44.3]} 29... Be8 {[%clk 0:00:44.6]} 30. Nc4 {[%clk 0:01:38.5]} 30... Qe7
{[%clk 0:00:27.7]} 31. Qc2 {[%clk 0:01:39]} 31... g6 {[%clk 0:00:25.4]} 32. Nxb6
{[%clk 0:01:38.2]} 32... Rd6 {[%clk 0:00:23.6]} 33. Qc5 {[%clk 0:01:37.9]} 33...
Kf8 {[%clk 0:00:11.5]} 34. Bb5 {[%clk 0:01:36]} 34... Rd1+ {[%clk 0:00:09.7]}
35. Kh2 {[%clk 0:01:36]} 35... Rd6 {[%clk 0:00:05.8]} 36. Bxe8 {[%clk
0:01:26.9]} 36... Ng4+ {[%clk 0:00:04.5]} 37. Kg3 {[%clk 0:01:23.4]} 37... Ne5
{[%clk 0:00:02.8]} 38. Qxe5 {[%clk 0:01:21.5]} 38... Rd5 {[%clk 0:00:02.1]} 39.
Qh8# {[%clk 0:01:21]} 1-0

[Event "Early-Titled-Tuesday-Blitz-April-23-2024"]
[Site "Chess.com"]
[Date "2024.04.23"]
[Round "1"]
[White "Fh2411"]
[Black "Hikaru"]
[Result "0-1"]
[WhiteElo "2559"]
[BlackElo "3291"]
[TimeControl "180+1"]
[EndTime "8:06:31 PDT"]
[Termination "Hikaru won on time"]

1. d4 {[%clk 0:02:50.8]} 1... a6 {[%clk 0:02:50.8]} 2. Nf3 {[%clk 0:02:48.2]}
2... c5 {[%clk 0:02:46.5]} 3. dxc5 {[%clk 0:02:45.7]} 3... e6 {[%clk 0:02:46]}
4. Be3 {[%clk 0:02:33.5]} 4... Qc7 {[%clk 0:02:42]} 5. Nbd2 {[%clk 0:02:29.6]}
5... Bxc5 {[%clk 0:02:40.2]} 6. Bxc5 {[%clk 0:02:29.3]} 6... Qxc5 {[%clk
0:02:41.1]} 7. c3 {[%clk 0:02:18.5]} 7... Nf6 {[%clk 0:02:40.6]} 8. e4 {[%clk
0:02:05.8]} 8... d6 {[%clk 0:02:33.7]} 9. Bd3 {[%clk 0:02:00.9]} 9... b5 {[%clk
0:02:33.3]} 10. O-O {[%clk 0:02:00.3]} 10... Bb7 {[%clk 0:02:33.5]} 11. Re1
{[%clk 0:01:51.4]} 11... Nbd7 {[%clk 0:02:33]} 12. a4 {[%clk 0:01:32.6]} 12...
bxa4 {[%clk 0:02:24.6]} 13. Rxa4 {[%clk 0:01:30.8]} 13... O-O {[%clk 0:02:24.4]}
14. Nb3 {[%clk 0:01:21.2]} 14... Qc7 {[%clk 0:02:17.4]} 15. Rc4 {[%clk
0:01:02.1]} 15... Qd8 {[%clk 0:02:14.1]} 16. Rb4 {[%clk 0:00:39.9]} 16... Ra7
{[%clk 0:02:13.7]} 17. Qe2 {[%clk 0:00:33.9]} 17... a5 {[%clk 0:02:13]} 18. Qe3
{[%clk 0:00:34.3]} 18... Qa8 {[%clk 0:02:02.8]} 19. Ra4 {[%clk 0:00:32.3]} 19...
Bc6 {[%clk 0:02:00.9]} 20. Ra3 {[%clk 0:00:32.9]} 20... e5 {[%clk 0:02:00.6]}
21. Nbd2 {[%clk 0:00:26.8]} 21... d5 {[%clk 0:01:55.4]} 22. exd5 {[%clk
0:00:25.7]} 22... Nxd5 {[%clk 0:01:56.3]} 23. Qe4 {[%clk 0:00:15.8]} 23... f5
{[%clk 0:01:52]} 24. Qh4 {[%clk 0:00:15.3]} 24... e4 {[%clk 0:01:44.2]} 25. Ng5
{[%clk 0:00:08.8]} 25... h6 {[%clk 0:01:44.4]} 26. Ne6 {[%clk 0:00:05.8]} 26...
exd3 {[%clk 0:01:42.7]} 27. Nxf8 {[%clk 0:00:05.1]} 27... Nxf8 {[%clk
0:01:41.7]} 28. Nc4 {[%clk 0:00:04.2]} 28... Nf6 {[%clk 0:01:41]} 29. Ne5 {[%clk
0:00:04.1]} 29... Bxg2 {[%clk 0:01:39.4]} 30. Nxd3 {[%clk 0:00:04.8]} 30... Be4
{[%clk 0:01:39]} 31. Nf4 {[%clk 0:00:04.9]} 31... g5 {[%clk 0:01:37.1]} 32. Qg3
{[%clk 0:00:05.4]} 32... Rg7 {[%clk 0:01:36.3]} 33. Nd3 {[%clk 0:00:04.5]} 33...
f4 {[%clk 0:01:34.7]} 34. Qh3 {[%clk 0:00:05]} 34... g4 {[%clk 0:01:29.1]} 35.
Qxh6 {[%clk 0:00:04.9]} 35... Rg6 {[%clk 0:01:29.7]} 36. Qxf4 {[%clk 0:00:03.7]}
36... Bxd3 {[%clk 0:01:30.3]} 37. c4 {[%clk 0:00:02.2]} 37... Qf3 {[%clk
0:01:25.5]} 38. Qg3 {[%clk 0:00:01.2]} 38... Bxc4 {[%clk 0:01:20.2]} 39. Rxa5
{[%clk 0:00:01.6]} 39... Ne4 {[%clk 0:01:18.3]} 0-1

[Event "Early-Titled-Tuesday-Blitz-April-23-2024"]
[Site "Chess.com"]
[Date "2024.04.23"]
[Round "1"]
[White "maurovargas01"]
[Black "lupta_robin"]
[Result "0-1"]
[WhiteElo "1894"]
[BlackElo "2565"]
[TimeControl "180+1"]
[EndTime "8:06:32 PDT"]
[Termination "lupta_robin won by checkmate"]

1. e4 {[%clk 0:02:59.1]} 1... Nc6 {[%clk 0:02:58.5]} 2. Nc3 {[%clk 0:02:58.9]}
2... e5 {[%clk 0:02:55.7]} 3. f4 {[%clk 0:02:58.2]} 3... Bc5 {[%clk 0:02:49.6]}
4. Nf3 {[%clk 0:02:58]} 4... d6 {[%clk 0:02:48]} 5. d3 {[%clk 0:02:57.4]} 5...
Nf6 {[%clk 0:02:46.4]} 6. Na4 {[%clk 0:02:51.5]} 6... Bb6 {[%clk 0:02:32.4]} 7.
Nxb6 {[%clk 0:02:49.1]} 7... axb6 {[%clk 0:02:33.3]} 8. g3 {[%clk 0:02:46.1]}
8... exf4 {[%clk 0:02:18.8]} 9. Bxf4 {[%clk 0:02:43.1]} 9... d5 {[%clk
0:02:18.2]} 10. e5 {[%clk 0:02:19.3]} 10... Nh5 {[%clk 0:02:14.1]} 11. Bg5
{[%clk 0:02:11.6]} 11... f6 {[%clk 0:02:14.2]} 12. exf6 {[%clk 0:02:08.5]} 12...
Nxf6 {[%clk 0:02:15.1]} 13. Bg2 {[%clk 0:02:06.5]} 13... O-O {[%clk 0:02:14.6]}
14. O-O {[%clk 0:02:05.7]} 14... h6 {[%clk 0:02:15.3]} 15. Bf4 {[%clk
0:01:54.5]} 15... Ng4 {[%clk 0:01:54.7]} 16. d4 {[%clk 0:01:10.5]} 16... Bf5
{[%clk 0:01:47.9]} 17. Qd2 {[%clk 0:00:58.3]} 17... Nf6 {[%clk 0:01:35.5]} 18.
Nh4 {[%clk 0:00:23.4]} 18... Be4 {[%clk 0:01:34.1]} 19. Rae1 {[%clk 0:00:19]}
19... Rxa2 {[%clk 0:01:30.7]} 20. Qc3 {[%clk 0:00:13.1]} 20... Ra8 {[%clk
0:01:19.1]} 21. Qb3 {[%clk 0:00:12.5]} 21... Kh7 {[%clk 0:01:15.2]} 22. c3
{[%clk 0:00:11]} 22... Qd7 {[%clk 0:01:13.8]} 23. Nf3 {[%clk 0:00:07.6]} 23...
Rae8 {[%clk 0:01:10.7]} 24. Ne5 {[%clk 0:00:06.1]} 24... Nxe5 {[%clk 0:01:11]}
25. dxe5 {[%clk 0:00:06]} 25... Bxg2 {[%clk 0:01:09.9]} 26. Kxg2 {[%clk
0:00:05.6]} 26... Ne4 {[%clk 0:01:10.5]} 27. Rd1 {[%clk 0:00:03.7]} 27... Rd8
{[%clk 0:01:03.6]} 28. Rfe1 {[%clk 0:00:03]} 28... Rxf4 {[%clk 0:00:58.2]} 29.
gxf4 {[%clk 0:00:02.4]} 29... Qg4+ {[%clk 0:00:58.6]} 30. Kh1 {[%clk 0:00:02.2]}
30... Nf2# {[%clk 0:00:48.2]} 0-1

[Event "Early-Titled-Tuesday-Blitz-April-23-2024"]
[Site "Chess.com"]
[Date "2024.04.23"]
[Round "1"]
[White "komogro"]
[Black "MetiForce"]
[Result "1-0"]
[WhiteElo "2551"]
[BlackElo "2939"]
[TimeControl "180+1"]
[EndTime "8:06:34 PDT"]
[Termination "komogro won by resignation"]

1. Nf3 {[%clk 0:02:59.5]} 1... f5 {[%clk 0:02:57]} 2. d3 {[%clk 0:02:59.4]} 2...
Nf6 {[%clk 0:02:55.9]} 3. e4 {[%clk 0:02:59.8]} 3... d6 {[%clk 0:02:55.9]} 4.
Nc3 {[%clk 0:02:58.8]} 4... e5 {[%clk 0:02:55.2]} 5. Bg5 {[%clk 0:02:51.7]} 5...
Be7 {[%clk 0:02:54.2]} 6. g3 {[%clk 0:02:44.5]} 6... O-O {[%clk 0:02:52.5]} 7.
Bxf6 {[%clk 0:02:34.2]} 7... Bxf6 {[%clk 0:02:51.5]} 8. Bh3 {[%clk 0:02:34]}
8... Be7 {[%clk 0:02:32.7]} 9. O-O {[%clk 0:02:24.3]} 9... Nc6 {[%clk
0:02:31.7]} 10. exf5 {[%clk 0:02:18.7]} 10... Bxf5 {[%clk 0:02:32.6]} 11. Bxf5
{[%clk 0:02:18.7]} 11... Rxf5 {[%clk 0:02:33.5]} 12. d4 {[%clk 0:02:19.6]} 12...
Qf8 {[%clk 0:02:22.9]} 13. Kg2 {[%clk 0:02:19.5]} 13... Qf7 {[%clk 0:02:13.1]}
14. d5 {[%clk 0:02:10]} 14... Nb4 {[%clk 0:01:36.5]} 15. a3 {[%clk 0:01:51.8]}
15... Rf8 {[%clk 0:01:34.7]} 16. axb4 {[%clk 0:01:49.4]} 16... Rxf3 {[%clk
0:01:35]} 17. Ne4 {[%clk 0:01:41.3]} 17... c6 {[%clk 0:01:35]} 18. c4 {[%clk
0:01:31.6]} 18... a6 {[%clk 0:01:33.9]} 19. dxc6 {[%clk 0:01:22.4]} 19... Qxc4
{[%clk 0:01:29.8]} 20. Nd2 {[%clk 0:00:57.2]} 20... Qxc6 {[%clk 0:00:39.7]} 21.
Nxf3 {[%clk 0:00:56.9]} 21... g5 {[%clk 0:00:39.9]} 22. Rc1 {[%clk 0:00:55]}
22... Qe4 {[%clk 0:00:35.3]} 23. Re1 {[%clk 0:00:53.4]} 23... Qf5 {[%clk
0:00:35]} 24. Qd5+ {[%clk 0:00:52.8]} 24... Kh8 {[%clk 0:00:31.6]} 25. Qe4
{[%clk 0:00:49.2]} 25... Qd7 {[%clk 0:00:26.6]} 26. h3 {[%clk 0:00:44.7]} 26...
Bf6 {[%clk 0:00:25.5]} 27. Red1 {[%clk 0:00:42.6]} 27... h5 {[%clk 0:00:22.9]}
28. Nxe5 {[%clk 0:00:39.2]} 1-0

[Event "Early-Titled-Tuesday-Blitz-April-23-2024"]
[Site "Chess.com"]
[Date "2024.04.23"]
[Round "1"]
[White "ChadBiryani"]
[Black "KogotBobra17"]
[Result "0-1"]
[WhiteElo "2441"]
[BlackElo "2769"]
[TimeControl "180+1"]
[EndTime "8:06:34 PDT"]
[Termination "KogotBobra17 won by resignation"]

1. c4 {[%clk 0:03:00.9]} 1... e6 {[%clk 0:02:58.4]} 2. g3 {[%clk 0:03:00.9]}
2... d5 {[%clk 0:02:58.1]} 3. Bg2 {[%clk 0:03:00.9]} 3... Nf6 {[%clk 0:02:58.2]}
4. Nf3 {[%clk 0:03:00.3]} 4... dxc4 {[%clk 0:02:58.6]} 5. Na3 {[%clk 0:03:00.3]}
5... Bxa3 {[%clk 0:02:53.1]} 6. Qa4+ {[%clk 0:02:57.6]} 6... b5 {[%clk
0:02:47.9]} 7. Qxa3 {[%clk 0:02:51.3]} 7... Bb7 {[%clk 0:02:47.9]} 8. O-O {[%clk
0:02:45.4]} 8... Qe7 {[%clk 0:02:41.9]} 9. Qa5 {[%clk 0:02:43.8]} 9... a6 {[%clk
0:02:34.4]} 10. b3 {[%clk 0:02:42.9]} 10... cxb3 {[%clk 0:02:04.3]} 11. axb3
{[%clk 0:02:42.4]} 11... c5 {[%clk 0:02:04.5]} 12. Bb2 {[%clk 0:02:34.9]} 12...
O-O {[%clk 0:02:04.1]} 13. Rfc1 {[%clk 0:02:28.4]} 13... Rc8 {[%clk 0:01:43.1]}
14. d4 {[%clk 0:02:16.1]} 14... cxd4 {[%clk 0:01:33.5]} 15. Rxc8+ {[%clk
0:02:11.4]} 15... Bxc8 {[%clk 0:01:33.6]} 16. Nxd4 {[%clk 0:02:11.4]} 16... Nd5
{[%clk 0:01:26.7]} 17. Rc1 {[%clk 0:01:56.4]} 17... Nd7 {[%clk 0:01:11.7]} 18.
Nc6 {[%clk 0:01:50.5]} 18... Qe8 {[%clk 0:01:07]} 19. e4 {[%clk 0:01:36.1]}
19... N5f6 {[%clk 0:01:05.6]} 20. Ba3 {[%clk 0:01:30.7]} 20... Bb7 {[%clk
0:01:05.9]} 21. Ne7+ {[%clk 0:01:30.7]} 21... Kh8 {[%clk 0:01:06.5]} 22. Rc7
{[%clk 0:01:24]} 22... Bxe4 {[%clk 0:01:04.4]} 23. Qd2 {[%clk 0:01:10.8]} 23...
Bxg2 {[%clk 0:01:00.5]} 24. Kxg2 {[%clk 0:01:10.6]} 24... Rd8 {[%clk 0:01:00.1]}
25. Qe3 {[%clk 0:00:41.3]} 25... a5 {[%clk 0:00:57]} 26. Nc6 {[%clk 0:00:28.3]}
26... Ra8 {[%clk 0:00:57]} 27. Qd4 {[%clk 0:00:22.2]} 27... Nd5 {[%clk 0:00:51]}
28. Rb7 {[%clk 0:00:22.3]} 28... Rc8 {[%clk 0:00:43.4]} 29. Nxa5 {[%clk
0:00:20.6]} 29... N7f6 {[%clk 0:00:40.2]} 30. Bd6 {[%clk 0:00:17.1]} 30... Qd8
{[%clk 0:00:38.6]} 31. Bb4 {[%clk 0:00:14.7]} 31... Nxb4 {[%clk 0:00:35.2]} 32.
Qxb4 {[%clk 0:00:14.9]} 32... Qd5+ {[%clk 0:00:35.9]} 33. Kg1 {[%clk 0:00:14.1]}
33... Rc1+ {[%clk 0:00:35.7]} 0-1

[Event "Early-Titled-Tuesday-Blitz-April-23-2024"]
[Site "Chess.com"]
[Date "2024.04.23"]
[Round "1"]
[White "AcostaPablo"]
[Black "Sasha_Solovev_777"]
[Result "1-0"]
[WhiteElo "2608"]
[BlackElo "2206"]
[TimeControl "180+1"]
[EndTime "8:06:34 PDT"]
[Termination "AcostaPablo won on time"]

1. e4 {[%clk 0:03:00]} 1... c5 {[%clk 0:02:59.6]} 2. Nf3 {[%clk 0:02:58.7]} 2...
d6 {[%clk 0:02:59.9]} 3. Bb5+ {[%clk 0:02:59]} 3... Nd7 {[%clk 0:02:59.2]} 4.
O-O {[%clk 0:02:58.1]} 4... a6 {[%clk 0:02:59.3]} 5. Bxd7+ {[%clk 0:02:56.9]}
5... Bxd7 {[%clk 0:02:57.8]} 6. c4 {[%clk 0:02:57.4]} 6... Bc6 {[%clk
0:02:56.8]} 7. Nc3 {[%clk 0:02:57.2]} 7... e5 {[%clk 0:02:47.8]} 8. d3 {[%clk
0:02:56.2]} 8... g6 {[%clk 0:02:47.7]} 9. Nd5 {[%clk 0:02:53.7]} 9... Bxd5
{[%clk 0:02:46.8]} 10. cxd5 {[%clk 0:02:51.4]} 10... Bg7 {[%clk 0:02:45.8]} 11.
h3 {[%clk 0:02:45.6]} 11... Ne7 {[%clk 0:02:44.6]} 12. Nh2 {[%clk 0:02:41.8]}
12... O-O {[%clk 0:02:42.3]} 13. f4 {[%clk 0:02:41]} 13... f5 {[%clk 0:02:42.7]}
14. fxe5 {[%clk 0:02:34.3]} 14... Bxe5 {[%clk 0:02:31.1]} 15. Bh6 {[%clk
0:02:31.8]} 15... Rf7 {[%clk 0:02:15.2]} 16. Nf3 {[%clk 0:02:24.2]} 16... Bf6
{[%clk 0:02:03]} 17. Qd2 {[%clk 0:02:18.6]} 17... c4 {[%clk 0:01:31.4]} 18. dxc4
{[%clk 0:02:04.6]} 18... fxe4 {[%clk 0:00:53.2]} 19. Ng5 {[%clk 0:02:01.2]}
19... Bxg5 {[%clk 0:00:51.3]} 20. Bxg5 {[%clk 0:01:58.7]} 20... Qb6+ {[%clk
0:00:37.1]} 21. Be3 {[%clk 0:01:56.3]} 21... Qc7 {[%clk 0:00:35.6]} 22. Rxf7
{[%clk 0:01:54.5]} 22... Kxf7 {[%clk 0:00:35.4]} 23. Rf1+ {[%clk 0:01:55.2]}
23... Kg8 {[%clk 0:00:34.5]} 24. b3 {[%clk 0:01:49.9]} 24... Nf5 {[%clk
0:00:28]} 25. Qf2 {[%clk 0:01:44.3]} 25... Nxe3 {[%clk 0:00:26]} 26. Qxe3 {[%clk
0:01:44.2]} 26... Qe7 {[%clk 0:00:25.3]} 27. Qd4 {[%clk 0:01:37.7]} 27... Re8
{[%clk 0:00:18.4]} 28. Qf6 {[%clk 0:01:37]} 28... e3 {[%clk 0:00:08.1]} 29. Qxe7
{[%clk 0:01:35.4]} 29... Rxe7 {[%clk 0:00:09]} 30. Re1 {[%clk 0:01:34.6]} 30...
Re4 {[%clk 0:00:08.6]} 31. Kf1 {[%clk 0:01:33.3]} 31... Rf4+ {[%clk 0:00:08.2]}
32. Ke2 {[%clk 0:01:30.5]} 32... Rf2+ {[%clk 0:00:08.3]} 33. Kxe3 {[%clk
0:01:30.9]} 33... Rxa2 {[%clk 0:00:08.7]} 34. Kd4 {[%clk 0:01:09.3]} 34... Rb2
{[%clk 0:00:05.5]} 35. Re6 {[%clk 0:01:07.8]} 35... Rxb3 {[%clk 0:00:05.4]} 36.
Rxd6 {[%clk 0:01:08.5]} 36... a5 {[%clk 0:00:02.5]} 37. Rd8+ {[%clk 0:01:08.4]}
37... Kf7 {[%clk 0:00:02.5]} 38. Ra8 {[%clk 0:01:08.9]} 1-0